[Event "*** SCC Grand Prix: Titled Tuesday Blitz"]
[Site "Chess.com"]
[Date "2020.07.14"]
[Round "9"]
[White "The_Machine04"]
[Black "Djager97"]
[Result "0-1"]
[WhiteElo "2296"]
[BlackElo "2456"]
[TimeControl "180+1"]
[EndTime "11:46:56 PDT"]
[Termination "Djager97 won on time"]

1. d4 {[%clk 0:02:59]} 1... Nf6 {[%clk 0:02:59.7]} 2. Bg5 {[%clk 0:02:56.6]}
2... Ne4 {[%clk 0:02:59.6]} 3. Bf4 {[%clk 0:02:54.3]} 3... d5 {[%clk 0:02:59.2]}
4. e3 {[%clk 0:02:53.9]} 4... g6 {[%clk 0:02:58.9]} 5. Bd3 {[%clk 0:02:52.9]}
5... Bg7 {[%clk 0:02:58.7]} 6. Bxe4 {[%clk 0:02:52.8]} 6... dxe4 {[%clk
0:02:58.8]} 7. Nc3 {[%clk 0:02:52.2]} 7... b6 {[%clk 0:02:43.8]} 8. Nxe4 {[%clk
0:02:42.3]} 8... Bb7 {[%clk 0:02:44.1]} 9. f3 {[%clk 0:02:42.2]} 9... Bxe4
{[%clk 0:02:37.7]} 10. fxe4 {[%clk 0:02:43.1]} 10... e5 {[%clk 0:02:37.6]} 11.
Bxe5 {[%clk 0:02:34.4]} 11... Bxe5 {[%clk 0:02:36.3]} 12. dxe5 {[%clk
0:02:35.3]} 12... Qh4+ {[%clk 0:02:36.9]} 13. g3 {[%clk 0:02:29.4]} 13... Qxe4
{[%clk 0:02:36.4]} 14. Qf3 {[%clk 0:02:29.2]} 14... Qb4+ {[%clk 0:02:33.3]} 15.
Kf2 {[%clk 0:02:24.1]} 15... c6 {[%clk 0:02:20.6]} 16. Rd1 {[%clk 0:01:59.5]}
16... Qxb2 {[%clk 0:02:11.7]} 17. Ne2 {[%clk 0:01:41.8]} 17... Qxe5 {[%clk
0:02:03.5]} 18. Nd4 {[%clk 0:01:22.7]} 18... O-O {[%clk 0:02:03]} 19. h4 {[%clk
0:01:14.1]} 19... a5 {[%clk 0:01:38]} 20. h5 {[%clk 0:01:11.9]} 20... Ra7 {[%clk
0:01:36.1]} 21. Qg4 {[%clk 0:01:01.9]} 21... Re7 {[%clk 0:01:33.2]} 22. Rd3
{[%clk 0:00:54.6]} 22... c5 {[%clk 0:01:29.3]} 23. Nf3 {[%clk 0:00:50.8]} 23...
Qf6 {[%clk 0:00:57.6]} 24. Qc4 {[%clk 0:00:21.3]} 24... Nc6 {[%clk 0:00:54]} 25.
hxg6 {[%clk 0:00:19.4]} 25... Qxf3+ {[%clk 0:00:52.8]} 26. Kxf3 {[%clk
0:00:14.6]} 26... Ne5+ {[%clk 0:00:53]} 27. Ke2 {[%clk 0:00:13.3]} 27... Nxc4
{[%clk 0:00:53.6]} 28. gxh7+ {[%clk 0:00:13.5]} 28... Kg7 {[%clk 0:00:51.6]} 29.
Rh4 {[%clk 0:00:11.9]} 29... Ne5 {[%clk 0:00:50.2]} 30. Rd6 {[%clk 0:00:09.7]}
30... Re6 {[%clk 0:00:47.6]} 31. Rd5 {[%clk 0:00:05.8]} 31... Rh8 {[%clk
0:00:42.4]} 32. Rh5 {[%clk 0:00:05.8]} 32... Ng6 {[%clk 0:00:37.2]} 33. Kf3
{[%clk 0:00:03.8]} 33... Rxh7 {[%clk 0:00:37.1]} 34. Rxh7+ {[%clk 0:00:04.2]}
34... Kxh7 {[%clk 0:00:38]} 35. e4 {[%clk 0:00:02.8]} 35... Kg7 {[%clk
0:00:37.8]} 36. c4 {[%clk 0:00:02.9]} 36... Ne5+ {[%clk 0:00:37.8]} 37. Kf4
{[%clk 0:00:02.4]} 37... Nxc4 {[%clk 0:00:38.7]} 0-1

[Event "*** SCC Grand Prix: Titled Tuesday Blitz"]
[Site "Chess.com"]
[Date "2020.07.14"]
[Round "9"]
[White "KaspMagAlpha"]
[Black "dopolian"]
[Result "0-1"]
[WhiteElo "2272"]
[BlackElo "2445"]
[TimeControl "180+1"]
[EndTime "11:46:56 PDT"]
[Termination "dopolian won on time"]

1. d4 {[%clk 0:03:00.9]} 1... Nf6 {[%clk 0:02:59.7]} 2. c4 {[%clk 0:02:59.7]}
2... e6 {[%clk 0:03:00.1]} 3. g3 {[%clk 0:02:59.1]} 3... c5 {[%clk 0:02:57.2]}
4. d5 {[%clk 0:02:56.8]} 4... exd5 {[%clk 0:02:57.8]} 5. cxd5 {[%clk 0:02:56]}
5... d6 {[%clk 0:02:58.5]} 6. Nc3 {[%clk 0:02:54.2]} 6... g6 {[%clk 0:02:58.1]}
7. Bg2 {[%clk 0:02:54.5]} 7... Bg7 {[%clk 0:02:58.2]} 8. Nf3 {[%clk 0:02:53.1]}
8... O-O {[%clk 0:02:59.1]} 9. O-O {[%clk 0:02:52.3]} 9... a6 {[%clk 0:02:57.9]}
10. a4 {[%clk 0:02:52]} 10... Re8 {[%clk 0:02:58.1]} 11. Nd2 {[%clk 0:02:51.4]}
11... Nbd7 {[%clk 0:02:57.3]} 12. e4 {[%clk 0:02:45.4]} 12... Ne5 {[%clk
0:02:49.1]} 13. h3 {[%clk 0:02:34]} 13... Rb8 {[%clk 0:02:44.4]} 14. a5 {[%clk
0:02:06.5]} 14... Nd3 {[%clk 0:02:32.5]} 15. Qc2 {[%clk 0:02:02.6]} 15... Nxc1
{[%clk 0:02:31.4]} 16. Qxc1 {[%clk 0:01:59.5]} 16... Bd7 {[%clk 0:02:23.6]} 17.
Nc4 {[%clk 0:01:54.4]} 17... Bb5 {[%clk 0:02:21.9]} 18. Nxb5 {[%clk 0:01:35.8]}
18... axb5 {[%clk 0:02:22.8]} 19. Nd2 {[%clk 0:01:33.5]} 19... Nd7 {[%clk
0:02:14.5]} 20. Qc2 {[%clk 0:01:31]} 20... c4 {[%clk 0:01:46.5]} 21. Ra2 {[%clk
0:01:26.4]} 21... Nc5 {[%clk 0:01:45.5]} 22. b3 {[%clk 0:01:25.2]} 22... c3
{[%clk 0:01:44.7]} 23. b4 {[%clk 0:01:21]} 23... Nd7 {[%clk 0:01:15.1]} 24. Nf3
{[%clk 0:01:14.3]} 24... Rc8 {[%clk 0:01:10.7]} 25. Rd1 {[%clk 0:01:13.7]} 25...
Rc4 {[%clk 0:01:10.2]} 26. Bf1 {[%clk 0:01:07.4]} 26... Rxb4 {[%clk 0:01:09.1]}
27. Rb1 {[%clk 0:00:41.1]} 27... Rexe4 {[%clk 0:00:59.2]} 28. Rxb4 {[%clk
0:00:27.1]} 28... Rxb4 {[%clk 0:00:57.1]} 29. Qc1 {[%clk 0:00:18.2]} 29... Nc5
{[%clk 0:00:51]} 30. Kg2 {[%clk 0:00:11.4]} 30... Rb2 {[%clk 0:00:37.4]} 31.
Rxb2 {[%clk 0:00:05.2]} 31... cxb2 {[%clk 0:00:38.3]} 32. Qb1 {[%clk 0:00:05.6]}
32... Qxa5 {[%clk 0:00:33.6]} 33. h4 {[%clk 0:00:01.3]} 33... Qb4 {[%clk
0:00:29.8]} 34. Nd2 {[%clk 0:00:01.5]} 34... Qxd2 {[%clk 0:00:29.3]} 35. Bxb5
{[%clk 0:00:01.3]} 35... Qxd5+ {[%clk 0:00:26.4]} 0-1

[Event "*** SCC Grand Prix: Titled Tuesday Blitz"]
[Site "Chess.com"]
[Date "2020.07.14"]
[Round "9"]
[White "Oleksandr_Bortnyk"]
[Black "Parhamov"]
[Result "0-1"]
[WhiteElo "2936"]
[BlackElo "3024"]
[TimeControl "180+1"]
[EndTime "11:46:57 PDT"]
[Termination "Parhamov won by resignation"]

1. e4 {[%clk 0:03:00.9]} 1... e5 {[%clk 0:03:00]} 2. Nf3 {[%clk 0:02:58.5]} 2...
Nc6 {[%clk 0:03:00.6]} 3. Bc4 {[%clk 0:02:58.5]} 3... Bc5 {[%clk 0:03:00]} 4. c3
{[%clk 0:02:58.6]} 4... Nf6 {[%clk 0:02:59.8]} 5. d4 {[%clk 0:02:59.3]} 5...
exd4 {[%clk 0:02:46.3]} 6. cxd4 {[%clk 0:03:00.2]} 6... Bb4+ {[%clk 0:02:45.7]}
7. Nbd2 {[%clk 0:03:00.5]} 7... d5 {[%clk 0:02:45.1]} 8. exd5 {[%clk 0:02:59.8]}
8... Nxd5 {[%clk 0:02:45.1]} 9. O-O {[%clk 0:03:00.1]} 9... O-O {[%clk
0:02:44.9]} 10. Qc2 {[%clk 0:02:41.8]} 10... Bg4 {[%clk 0:02:32.6]} 11. Bd3
{[%clk 0:02:29.4]} 11... Bxd2 {[%clk 0:02:10.8]} 12. Nxd2 {[%clk 0:01:42.6]}
12... Nxd4 {[%clk 0:01:40.1]} 13. Qc5 {[%clk 0:01:02.7]} 13... Nf4 {[%clk
0:01:38.9]} 14. Be4 {[%clk 0:00:59]} 14... Re8 {[%clk 0:01:37]} 15. f3 {[%clk
0:00:51.7]} 15... Bh5 {[%clk 0:01:15.5]} 16. Nb3 {[%clk 0:00:47.1]} 16... Nde2+
{[%clk 0:01:12.5]} 17. Kh1 {[%clk 0:00:45.8]} 17... Nd3 {[%clk 0:01:11]} 18.
Bxd3 {[%clk 0:00:26.6]} 18... Qxd3 {[%clk 0:01:11.5]} 19. Bd2 {[%clk 0:00:19.6]}
19... Bg6 {[%clk 0:01:10.5]} 20. Qxc7 {[%clk 0:00:19.7]} 20... b6 {[%clk
0:01:10.5]} 21. Rad1 {[%clk 0:00:17]} 21... Qc2 {[%clk 0:01:10]} 22. Qxc2 {[%clk
0:00:14.2]} 22... Bxc2 {[%clk 0:01:10.9]} 23. Rde1 {[%clk 0:00:15.1]} 23... Rad8
{[%clk 0:00:56.6]} 24. Bg5 {[%clk 0:00:14.3]} 24... f6 {[%clk 0:00:56.7]} 25.
Bh4 {[%clk 0:00:10.5]} 25... Bxb3 {[%clk 0:00:55.4]} 26. axb3 {[%clk 0:00:11.4]}
26... Nd4 {[%clk 0:00:56.3]} 27. Ra1 {[%clk 0:00:04.8]} 27... a5 {[%clk
0:00:56.2]} 28. b4 {[%clk 0:00:03.9]} 28... Nc2 {[%clk 0:00:55.2]} 29. Rad1
{[%clk 0:00:02.8]} 29... Nxb4 {[%clk 0:00:55.1]} 30. h3 {[%clk 0:00:02.6]} 30...
a4 {[%clk 0:00:53.4]} 31. Bf2 {[%clk 0:00:01.9]} 31... b5 {[%clk 0:00:53.3]} 32.
Bb6 {[%clk 0:00:02.3]} 32... Rd5 {[%clk 0:00:46.4]} 33. Ba5 {[%clk 0:00:02.2]}
33... Nd3 {[%clk 0:00:46.3]} 34. Kh2 {[%clk 0:00:02.3]} 34... Re2 {[%clk
0:00:45.1]} 35. Bc3 {[%clk 0:00:01.2]} 35... b4 {[%clk 0:00:43.7]} 36. Rxd3
{[%clk 0:00:01.3]} 36... Rxd3 {[%clk 0:00:43.8]} 37. Bxb4 {[%clk 0:00:02.2]}
37... Rxb2 {[%clk 0:00:44.4]} 38. Bc5 {[%clk 0:00:03.1]} 38... a3 {[%clk
0:00:44.4]} 39. Ra1 {[%clk 0:00:03.2]} 39... a2 {[%clk 0:00:44.6]} 40. Kg3
{[%clk 0:00:03.4]} 40... Rdd2 {[%clk 0:00:44.9]} 41. Kf4 {[%clk 0:00:03.3]}
41... Rb1 {[%clk 0:00:45.2]} 42. Rxa2 {[%clk 0:00:02.9]} 0-1

[Event "*** SCC Grand Prix: Titled Tuesday Blitz"]
[Site "Chess.com"]
[Date "2020.07.14"]
[Round "9"]
[White "GregShahade"]
[Black "pedromartinez91"]
[Result "1-0"]
[WhiteElo "2728"]
[BlackElo "2545"]
[TimeControl "180+1"]
[EndTime "11:46:59 PDT"]
[Termination "GregShahade won by resignation"]

1. e4 {[%clk 0:03:00.9]} 1... e6 {[%clk 0:03:00]} 2. d4 {[%clk 0:03:00.7]} 2...
d5 {[%clk 0:03:00.6]} 3. Nd2 {[%clk 0:03:01.2]} 3... Nf6 {[%clk 0:03:00.9]} 4.
e5 {[%clk 0:03:01.5]} 4... Ne4 {[%clk 0:03:01.4]} 5. Bd3 {[%clk 0:02:58.1]} 5...
Nxd2 {[%clk 0:03:01.1]} 6. Bxd2 {[%clk 0:02:58.8]} 6... c5 {[%clk 0:03:02]} 7.
dxc5 {[%clk 0:02:57.2]} 7... Nd7 {[%clk 0:03:00.6]} 8. Nf3 {[%clk 0:02:55.2]}
8... Nxc5 {[%clk 0:03:00.7]} 9. O-O {[%clk 0:02:51.4]} 9... Nxd3 {[%clk
0:03:00.7]} 10. cxd3 {[%clk 0:02:52.3]} 10... Bd7 {[%clk 0:03:01.2]} 11. Rc1
{[%clk 0:02:49.9]} 11... Be7 {[%clk 0:03:00.9]} 12. Nd4 {[%clk 0:02:41.7]} 12...
O-O {[%clk 0:02:57.1]} 13. Qb3 {[%clk 0:02:39.3]} 13... b5 {[%clk 0:02:40.6]}
14. Bb4 {[%clk 0:02:36.3]} 14... a5 {[%clk 0:02:30.8]} 15. Bxe7 {[%clk
0:02:18.3]} 15... Qxe7 {[%clk 0:02:31.7]} 16. Rc7 {[%clk 0:02:12.2]} 16... Rfc8
{[%clk 0:02:31.3]} 17. Rfc1 {[%clk 0:02:08.9]} 17... Qg5 {[%clk 0:02:21.1]} 18.
Qc2 {[%clk 0:01:35.9]} 18... h6 {[%clk 0:02:05.2]} 19. Nf3 {[%clk 0:01:24.7]}
19... Qf4 {[%clk 0:02:05]} 20. Qd2 {[%clk 0:01:11.7]} 20... Qxd2 {[%clk
0:01:25.4]} 21. Nxd2 {[%clk 0:01:12.6]} 21... Rxc7 {[%clk 0:01:25.6]} 22. Rxc7
{[%clk 0:01:12.9]} 22... Be8 {[%clk 0:01:26.5]} 23. Nb3 {[%clk 0:01:02.1]} 23...
b4 {[%clk 0:01:24.9]} 24. Nd4 {[%clk 0:00:59.7]} 24... Kh7 {[%clk 0:01:14.8]}
25. f4 {[%clk 0:00:52.8]} 25... g5 {[%clk 0:01:12.2]} 26. g3 {[%clk 0:00:52.6]}
26... Kg6 {[%clk 0:01:10.5]} 27. Kf2 {[%clk 0:00:49.7]} 27... Ba4 {[%clk
0:01:10.2]} 28. Ke3 {[%clk 0:00:37.3]} 28... Bd1 {[%clk 0:01:07.8]} 29. h3
{[%clk 0:00:36.4]} 29... a4 {[%clk 0:01:05.5]} 30. Rc1 {[%clk 0:00:31.5]} 30...
gxf4+ {[%clk 0:00:57.8]} 31. Kxf4 {[%clk 0:00:28.7]} 31... b3 {[%clk 0:00:49]}
32. Rxd1 {[%clk 0:00:27.1]} 32... a3 {[%clk 0:00:44.9]} 33. axb3 {[%clk
0:00:22.8]} 33... axb2 {[%clk 0:00:40.8]} 34. Rb1 {[%clk 0:00:22.9]} 34... Ra2
{[%clk 0:00:41.2]} 35. b4 {[%clk 0:00:16.4]} 35... h5 {[%clk 0:00:37.2]} 36. b5
{[%clk 0:00:15.5]} 36... f6 {[%clk 0:00:37.6]} 37. b6 {[%clk 0:00:13]} 37... Ra4
{[%clk 0:00:37.8]} 38. Rxb2 {[%clk 0:00:09.2]} 38... Rxd4+ {[%clk 0:00:37.4]}
39. Ke3 {[%clk 0:00:09.4]} 39... Rb4 {[%clk 0:00:31.9]} 40. Rxb4 {[%clk
0:00:08.4]} 1-0

[Event "*** SCC Grand Prix: Titled Tuesday Blitz"]
[Site "Chess.com"]
[Date "2020.07.14"]
[Round "9"]
[White "Kavyev_Ruslan"]
[Black "Speshka"]
[Result "0-1"]
[WhiteElo "2443"]
[BlackElo "2220"]
[TimeControl "180+1"]
[EndTime "11:46:59 PDT"]
[Termination "Speshka won by resignation"]

1. d4 {[%clk 0:03:00.9]} 1... f5 {[%clk 0:02:59.1]} 2. c4 {[%clk 0:02:59.2]}
2... Nf6 {[%clk 0:02:58.9]} 3. Nf3 {[%clk 0:02:58.6]} 3... g6 {[%clk 0:02:58.8]}
4. e3 {[%clk 0:02:58.2]} 4... Bg7 {[%clk 0:02:58.7]} 5. b4 {[%clk 0:02:58.9]}
5... O-O {[%clk 0:02:58.4]} 6. Bb2 {[%clk 0:02:59.1]} 6... d6 {[%clk 0:02:58.4]}
7. Nbd2 {[%clk 0:02:58.5]} 7... Qe8 {[%clk 0:02:58]} 8. Qb3 {[%clk 0:02:58.5]}
8... c6 {[%clk 0:02:49]} 9. Be2 {[%clk 0:02:58]} 9... Nbd7 {[%clk 0:02:48]} 10.
O-O {[%clk 0:02:58]} 10... Kh8 {[%clk 0:02:44.9]} 11. Rfd1 {[%clk 0:02:57.8]}
11... e5 {[%clk 0:02:44.2]} 12. dxe5 {[%clk 0:02:32]} 12... dxe5 {[%clk
0:02:43.2]} 13. c5 {[%clk 0:02:32.5]} 13... e4 {[%clk 0:02:38.5]} 14. Nd4 {[%clk
0:02:32]} 14... Ne5 {[%clk 0:02:35.8]} 15. a4 {[%clk 0:02:30.5]} 15... Bd7
{[%clk 0:02:28.4]} 16. b5 {[%clk 0:02:30.1]} 16... Qe7 {[%clk 0:02:20.8]} 17.
Nc4 {[%clk 0:02:23.3]} 17... Qxc5 {[%clk 0:02:11.9]} 18. Ba3 {[%clk 0:01:38]}
18... Qd5 {[%clk 0:02:10.9]} 19. Nxf5 {[%clk 0:01:32.6]} 19... Qf7 {[%clk
0:01:51.5]} 20. Nxe5 {[%clk 0:01:30.8]} 20... Qxb3 {[%clk 0:01:49.3]} 21. Nxg7
{[%clk 0:01:29.1]} 21... Kxg7 {[%clk 0:01:48.3]} 22. Bxf8+ {[%clk 0:01:27.9]}
22... Rxf8 {[%clk 0:01:47.7]} 23. Bc4 {[%clk 0:01:24]} 23... Qc3 {[%clk
0:01:44.3]} 24. Nxd7 {[%clk 0:01:14.2]} 24... Nxd7 {[%clk 0:01:43.8]} 25. Rac1
{[%clk 0:01:06.4]} 25... Qb2 {[%clk 0:01:33.9]} 26. Rxd7+ {[%clk 0:01:05.3]}
26... Kh6 {[%clk 0:01:33.2]} 27. Rf1 {[%clk 0:01:05.5]} 27... Qc3 {[%clk
0:01:28.7]} 28. Rd4 {[%clk 0:00:53.6]} 28... cxb5 {[%clk 0:01:27.1]} 29. axb5
{[%clk 0:00:49.2]} 29... Rc8 {[%clk 0:01:19.2]} 30. Bd5 {[%clk 0:00:48]} 30...
Rc5 {[%clk 0:01:12.8]} 31. Bxb7 {[%clk 0:00:44.2]} 31... Rxb5 {[%clk 0:01:11.8]}
32. Bxe4 {[%clk 0:00:44.6]} 32... a5 {[%clk 0:01:11.5]} 33. h4 {[%clk
0:00:43.7]} 33... Rb4 {[%clk 0:01:09.3]} 34. Rfd1 {[%clk 0:00:44.4]} 34... a4
{[%clk 0:01:06.7]} 35. Rxb4 {[%clk 0:00:40.4]} 35... Qxb4 {[%clk 0:01:05.9]} 36.
Bd5 {[%clk 0:00:41]} 36... Qb2 {[%clk 0:01:02.7]} 37. Bg8 {[%clk 0:00:37.9]}
37... Qb5 {[%clk 0:00:38.6]} 38. Rc1 {[%clk 0:00:28.5]} 38... Kg7 {[%clk
0:00:37.6]} 39. Ba2 {[%clk 0:00:26]} 39... Qb2 {[%clk 0:00:36.1]} 40. Rc7+
{[%clk 0:00:25.6]} 40... Kf6 {[%clk 0:00:35.3]} 41. Bg8 {[%clk 0:00:23.6]} 41...
Qa1+ {[%clk 0:00:33]} 42. Kh2 {[%clk 0:00:23.2]} 42... Qe5+ {[%clk 0:00:32.8]}
0-1

[Event "*** SCC Grand Prix: Titled Tuesday Blitz"]
[Site "Chess.com"]
[Date "2020.07.14"]
[Round "9"]
[White "Nf3c5"]
[Black "abykhovsky"]
[Result "0-1"]
[WhiteElo "2539"]
[BlackElo "2725"]
[TimeControl "180+1"]
[EndTime "11:47:00 PDT"]
[Termination "abykhovsky won on time"]

1. e4 {[%clk 0:02:59.6]} 1... c5 {[%clk 0:02:52.1]} 2. b3 {[%clk 0:02:58.8]}
2... Nf6 {[%clk 0:02:49.9]} 3. e5 {[%clk 0:02:56.8]} 3... Nd5 {[%clk 0:02:50]}
4. Bb2 {[%clk 0:02:57.7]} 4... Nc6 {[%clk 0:02:50]} 5. Qf3 {[%clk 0:02:57.7]}
5... Ndb4 {[%clk 0:02:46.1]} 6. Na3 {[%clk 0:02:55.4]} 6... d5 {[%clk
0:02:41.9]} 7. exd6 {[%clk 0:02:41.9]} 7... Qxd6 {[%clk 0:02:40.9]} 8. c3 {[%clk
0:02:39.3]} 8... Ne5 {[%clk 0:02:36.2]} 9. Qe3 {[%clk 0:01:26.6]} 9... Nbd3+
{[%clk 0:02:32.1]} 10. Bxd3 {[%clk 0:01:21.5]} 10... Nxd3+ {[%clk 0:02:31.2]}
11. Kd1 {[%clk 0:01:21.8]} 11... Nxb2+ {[%clk 0:02:25]} 12. Kc2 {[%clk
0:01:21.6]} 12... Na4 {[%clk 0:02:06.5]} 13. bxa4 {[%clk 0:01:20.1]} 13... Bf5+
{[%clk 0:02:03.8]} 14. d3 {[%clk 0:01:15.7]} 14... O-O-O {[%clk 0:02:01]} 15.
Rd1 {[%clk 0:01:10.9]} 15... e6 {[%clk 0:01:59]} 16. Nf3 {[%clk 0:01:07.1]}
16... Qa6 {[%clk 0:01:58.5]} 17. Qf4 {[%clk 0:00:57.5]} 17... Rxd3 {[%clk
0:01:53.7]} 18. Kb2 {[%clk 0:00:49.8]} 18... Bd6 {[%clk 0:01:26.4]} 19. Qc4
{[%clk 0:00:45.6]} 19... Qxc4 {[%clk 0:01:20.5]} 20. Nxc4 {[%clk 0:00:46.5]}
20... Bc7 {[%clk 0:01:18.5]} 21. Rxd3 {[%clk 0:00:40.4]} 21... Bxd3 {[%clk
0:01:18.4]} 22. Nce5 {[%clk 0:00:41.3]} 22... Bxe5 {[%clk 0:01:05.6]} 23. Nxe5
{[%clk 0:00:42.2]} 23... Bg6 {[%clk 0:01:06.1]} 24. h4 {[%clk 0:00:36.4]} 24...
f6 {[%clk 0:01:05]} 25. h5 {[%clk 0:00:33]} 25... Be8 {[%clk 0:01:03.9]} 26. Nd3
{[%clk 0:00:31.6]} 26... b6 {[%clk 0:01:01.4]} 27. h6 {[%clk 0:00:31.6]} 27...
g5 {[%clk 0:01:00.5]} 28. Kb3 {[%clk 0:00:30]} 28... e5 {[%clk 0:00:58.6]} 29.
f3 {[%clk 0:00:29.8]} 29... Bf7+ {[%clk 0:00:56.3]} 30. Kc2 {[%clk 0:00:25.1]}
30... Bg6 {[%clk 0:00:55.6]} 31. c4 {[%clk 0:00:19.4]} 31... Rd8 {[%clk
0:00:55.3]} 32. Rd1 {[%clk 0:00:20.3]} 32... Kc7 {[%clk 0:00:43.9]} 33. Kc3
{[%clk 0:00:20.5]} 33... Rxd3+ {[%clk 0:00:42.9]} 34. Rxd3 {[%clk 0:00:21.4]}
34... Bxd3 {[%clk 0:00:43.3]} 35. Kxd3 {[%clk 0:00:22.3]} 35... f5 {[%clk
0:00:43.1]} 36. g4 {[%clk 0:00:21]} 36... e4+ {[%clk 0:00:42.1]} 37. Ke3 {[%clk
0:00:19.7]} 37... exf3 {[%clk 0:00:41.6]} 38. gxf5 {[%clk 0:00:19]} 38... g4
{[%clk 0:00:42]} 0-1

[Event "*** SCC Grand Prix: Titled Tuesday Blitz"]
[Site "Chess.com"]
[Date "2020.07.14"]
[Round "9"]
[White "FlamingPhoenix123"]
[Black "Anton_Demchenko"]
[Result "0-1"]
[WhiteElo "2433"]
[BlackElo "2791"]
[TimeControl "180+1"]
[EndTime "11:47:00 PDT"]
[Termination "Anton_Demchenko won on time"]

1. e4 {[%clk 0:03:00.9]} 1... c5 {[%clk 0:03:00]} 2. Nf3 {[%clk 0:03:00.9]} 2...
Nc6 {[%clk 0:03:00.6]} 3. d4 {[%clk 0:03:01.1]} 3... cxd4 {[%clk 0:03:01.5]} 4.
Nxd4 {[%clk 0:03:02]} 4... Nf6 {[%clk 0:03:02.4]} 5. Nc3 {[%clk 0:03:01.4]} 5...
d6 {[%clk 0:03:03]} 6. Bg5 {[%clk 0:03:01]} 6... e6 {[%clk 0:03:03.6]} 7. Qd2
{[%clk 0:03:00.6]} 7... a6 {[%clk 0:03:04.1]} 8. O-O-O {[%clk 0:03:00.6]} 8...
Be7 {[%clk 0:03:04.5]} 9. f4 {[%clk 0:02:43.9]} 9... Bd7 {[%clk 0:03:04]} 10.
Nf3 {[%clk 0:02:40.1]} 10... b5 {[%clk 0:03:02.9]} 11. Bxf6 {[%clk 0:02:39]}
11... gxf6 {[%clk 0:03:03.8]} 12. Kb1 {[%clk 0:02:37.8]} 12... b4 {[%clk
0:03:02.4]} 13. Ne2 {[%clk 0:02:33.3]} 13... h5 {[%clk 0:03:03.1]} 14. Ned4
{[%clk 0:02:28.6]} 14... Qb6 {[%clk 0:03:01.9]} 15. Bc4 {[%clk 0:02:24.3]} 15...
Na5 {[%clk 0:02:57.5]} 16. Bd3 {[%clk 0:02:19.3]} 16... Nb7 {[%clk 0:02:57]} 17.
Rhf1 {[%clk 0:02:15]} 17... Nc5 {[%clk 0:02:56.4]} 18. e5 {[%clk 0:02:06.4]}
18... dxe5 {[%clk 0:02:51.8]} 19. fxe5 {[%clk 0:02:07.3]} 19... f5 {[%clk
0:02:52.6]} 20. Nb3 {[%clk 0:01:36.7]} 20... Rd8 {[%clk 0:02:45.5]} 21. Nxc5
{[%clk 0:01:34]} 21... Bxc5 {[%clk 0:02:37.3]} 22. Qg5 {[%clk 0:01:32.8]} 22...
Be7 {[%clk 0:02:20.5]} 23. Qg7 {[%clk 0:01:30.8]} 23... Rf8 {[%clk 0:02:21.2]}
24. Ng5 {[%clk 0:01:27.8]} 24... Bxg5 {[%clk 0:02:19.9]} 25. Qxg5 {[%clk
0:01:28.7]} 25... Qc5 {[%clk 0:02:06.5]} 26. Qf6 {[%clk 0:01:03.4]} 26... Qe7
{[%clk 0:01:56]} 27. Bxa6 {[%clk 0:00:49.4]} 27... Qxf6 {[%clk 0:01:50.5]} 28.
exf6 {[%clk 0:00:50.3]} 28... Bc6 {[%clk 0:01:51.4]} 29. Rxd8+ {[%clk
0:00:44.1]} 29... Kxd8 {[%clk 0:01:51.3]} 30. g3 {[%clk 0:00:44.5]} 30... h4
{[%clk 0:01:49.8]} 31. a3 {[%clk 0:00:38.5]} 31... bxa3 {[%clk 0:01:48.6]} 32.
b4 {[%clk 0:00:38.9]} 32... hxg3 {[%clk 0:01:44.9]} 33. hxg3 {[%clk 0:00:39.8]}
33... Rg8 {[%clk 0:01:44.5]} 34. b5 {[%clk 0:00:39.9]} 34... Bd5 {[%clk
0:01:44.5]} 35. b6 {[%clk 0:00:36.9]} 35... Kd7 {[%clk 0:01:22.3]} 36. c4 {[%clk
0:00:13.9]} 36... Be4+ {[%clk 0:01:05]} 37. Ka1 {[%clk 0:00:12.4]} 37... Kc6
{[%clk 0:01:04.3]} 38. b7 {[%clk 0:00:10.1]} 38... Kb6 {[%clk 0:01:02.3]} 39.
Bb5 {[%clk 0:00:07.6]} 39... Kxb7 {[%clk 0:01:02.5]} 40. Rg1 {[%clk 0:00:06.3]}
40... Kb6 {[%clk 0:00:54.6]} 41. Ka2 {[%clk 0:00:05.9]} 41... Kc5 {[%clk
0:00:53.8]} 42. Kxa3 {[%clk 0:00:06]} 42... f4 {[%clk 0:00:54.4]} 43. g4 {[%clk
0:00:05.4]} 43... f3 {[%clk 0:00:50.7]} 0-1

[Event "*** SCC Grand Prix: Titled Tuesday Blitz"]
[Site "Chess.com"]
[Date "2020.07.14"]
[Round "9"]
[White "floplover"]
[Black "TokChess"]
[Result "0-1"]
[WhiteElo "2269"]
[BlackElo "2444"]
[TimeControl "180+1"]
[EndTime "11:47:00 PDT"]
[Termination "TokChess won on time"]

1. d4 {[%clk 0:03:00.9]} 1... e6 {[%clk 0:02:57]} 2. c4 {[%clk 0:03:01]} 2...
Nf6 {[%clk 0:02:54.6]} 3. Nc3 {[%clk 0:03:00.9]} 3... Bb4 {[%clk 0:02:54.4]} 4.
Qc2 {[%clk 0:03:01.2]} 4... d5 {[%clk 0:02:52.9]} 5. cxd5 {[%clk 0:03:00.9]}
5... exd5 {[%clk 0:02:52.8]} 6. Bg5 {[%clk 0:03:00.7]} 6... O-O {[%clk
0:02:51.1]} 7. e3 {[%clk 0:02:57.6]} 7... c6 {[%clk 0:02:50.7]} 8. Bd3 {[%clk
0:02:57.2]} 8... g6 {[%clk 0:02:50.1]} 9. h4 {[%clk 0:02:49.6]} 9... Be7 {[%clk
0:02:29.6]} 10. Nh3 {[%clk 0:02:22.1]} 10... Nh5 {[%clk 0:02:18.8]} 11. Bh6
{[%clk 0:02:17.7]} 11... Re8 {[%clk 0:02:17]} 12. Nf4 {[%clk 0:02:11.3]} 12...
Nxf4 {[%clk 0:02:15.2]} 13. Bxf4 {[%clk 0:02:11.8]} 13... Bxh4 {[%clk
0:01:56.7]} 14. O-O-O {[%clk 0:02:10.7]} 14... Nd7 {[%clk 0:01:54.5]} 15. Rh2
{[%clk 0:01:50.1]} 15... Bg5 {[%clk 0:01:52.2]} 16. Rdh1 {[%clk 0:01:38.8]}
16... Nf8 {[%clk 0:01:50.7]} 17. Be5 {[%clk 0:01:29.8]} 17... Bf6 {[%clk
0:01:19.8]} 18. Rxh7 {[%clk 0:01:19.9]} 18... Bxe5 {[%clk 0:01:15.3]} 19. dxe5
{[%clk 0:00:59.4]} 19... Nxh7 {[%clk 0:01:02]} 20. Bxg6 {[%clk 0:00:59.1]} 20...
Nf8 {[%clk 0:01:00.5]} 21. Bh7+ {[%clk 0:00:45.8]} 21... Kg7 {[%clk 0:00:58.1]}
22. Bd3 {[%clk 0:00:15.4]} 22... Qg5 {[%clk 0:00:37.2]} 23. f4 {[%clk 0:00:15]}
23... Qg3 {[%clk 0:00:37.3]} 24. Ne2 {[%clk 0:00:11.4]} 24... Qxe3+ {[%clk
0:00:36.8]} 25. Kb1 {[%clk 0:00:11.8]} 25... Bg4 {[%clk 0:00:32.2]} 26. Nc3
{[%clk 0:00:05.3]} 26... Ng6 {[%clk 0:00:22.5]} 27. a3 {[%clk 0:00:05.7]} 27...
Rh8 {[%clk 0:00:21.2]} 28. Rf1 {[%clk 0:00:03.2]} 28... Nxf4 {[%clk 0:00:16]}
29. Bf5 {[%clk 0:00:01.3]} 29... Bh5 {[%clk 0:00:12.2]} 0-1